Cogmind - Beta 13 @@@ ROGUE MODE // 2024.04.06 @ 23:34:07 Player: chexo4 Result: Destroyed by Y-45 Defender with Heavy Assault Rifle Performance ------------- Evolutions (0) 0 Regions Visited (4) 800 Robots Destroyed (20) 100 Value Destroyed (540) 540 Prototype IDs (2) 40 Alien Tech Used (0) 0 Bonus (14) 14 TOTAL SCORE: 1494 Bonus ------- Follower Combat Kills 14 Cogmind --------- Core Integrity 0/250 Matter 300/300 Energy 315/315 System Corruption 4% Temperature Cool (13) Movement Rolling (110) Location -8/Recycling Parts ------- > --- POWER (1) -------- Neutrino Core > --- PROPULSION (2) --- Subdweller Monowheel Subdweller Monowheel > --- UTILITY (2) ------ Scrap Engine > --- WEAPON (2) ------- Pulse Rifle Improved Datajack > --- INVENTORY (5) ---- Subdweller Power Source Improved Terrain Scan Processor Scrap Shield Makeshift Hacking Suite Peak State ------------ > --- POWER ------------ Neutrino Core > --- PROPULSION ------- Subdweller Monowheel Subdweller Monowheel > --- UTILITY ---------- Scrap Engine > --- WEAPON ----------- Pulse Rifle Improved Datajack > --- INVENTORY -------- Subdweller Power Source Improved Terrain Scan Processor Scrap Shield Makeshift Hacking Suite [Rating: 33] Favorites ----------- Power Light Ion Engine Engine Light Ion Engine Power Core Neutrino Core Propulsion Compact Wheel Wheel Compact Wheel Utility Large Storage Unit Device Scrap Engine Storage Large Storage Unit Protection Scrap Shield Weapon Light Assault Rifle Energy Gun Small Laser Energy Cannon Subdweller Beam Cannon Ballistic Gun Light Assault Rifle Launcher Grenade Launcher Special Weapon Mining Laser Special Melee Weapon Improved Datajack Build | -11 -10 -10 -10 -8 ------- Run | Yrd Mat Min Sub Rec Slots Evolved . | . . . . . Power . | . . . . . Propulsion . | . . . . . Utility . | . . . . . Weapon . | . . . . . Parts Attached 34 | 6 4 7 13 4 Power 5 | 1 . 1 3 . Engine 4 | 1 . 1 2 . Core 1 | . . . 1 . Reactor . | . . . . . Propulsion 9 | 2 . . 6 1 Treads . | . . . . . Leg . | . . . . . Wheel 9 | 2 . . 6 1 Hover . | . . . . . Flight . | . . . . . Utility 5 | 1 1 . 2 1 Device 1 | . . . . 1 Storage 2 | 1 1 . . . Processor . | . . . . . Hackware . | . . . . . Protection 2 | . . . 2 . Artifact . | . . . . . Weapon 15 | 2 3 6 2 2 Energy Gun 4 | 1 . 2 . 1 Energy Cannon 2 | . 1 . 1 . Ballistic Gun 4 | 1 1 1 1 . Ballistic Cannon . | . . . . . Launcher 2 | . 1 1 . . Special Weapon 2 | . . 2 . . Impact Weapon . | . . . . . Slashing Weapon . | . . . . . Piercing Weapon . | . . . . . Special Melee Weapon 1 | . . . . 1 Unidentified Prototypes . | . . . . . Parts Lost 6 | . 1 5 . . Power . | . . . . . Propulsion 2 | . . 2 . . Utility . | . . . . . Weapon 4 | . 1 3 . . Highest Loss Streak 3 | . 1 3 . . To Critical Strikes . | . . . . . Average Slot Usage (%) 77 | . 83 77 74 76 Engine 8 | . 14 13 5 . Core 4 | . . . 8 14 Wheel 26 | . 28 24 27 28 Device 2 | . . . . 13 Storage 7 | . 14 13 . . Protection 3 | . . . 14 . Energy Gun 4 | . 7 5 . 7 Energy Cannon 7 | . 5 6 13 4 Ballistic Gun 8 | . 13 13 5 . Special Melee Weapon 1 | . . . . 7 Naked Turns 55 | . . 52 3 . Heaviest Build 44 | 11 27 31 44 40 Greatest Support 40 | 32 32 32 40 40 Greatest Overweight (x) 10 | . . 10 2 1 Average Overweight (x) . | . . . . . Largest Inventory Capacity 15 | 8 15 15 5 5 Average Capacity 10 | 7 14 14 5 5 Most Carried 11 | 4 8 11 5 5 Average Carried 6 | 1 5 9 4 4 Final Capacity 15 | 8 15 5 5 5 Final Carried 8 | 2 8 5 5 5 Scrap Engine Consumption 10 | . . . . 10 Class Distribution -------------------- 78% | Mutant 21% | Subdweller-Mutant Dominant Class ---------------- Mutant | -10/Materials Mutant | -10/Mines Subdweller-Mutant | -10/Subcaves Mutant | -8/Recycling Resources | -11 -10 -10 -10 -8 ----------- Run | Yrd Mat Min Sub Rec Matter Collected 699 | 260 95 114 178 52 Remotely . | . . . . . Salvage Created 1159 | . 454 181 276 248 Parts 54 | . 22 5 20 7 Haulers Intercepted . | . . . . . Recyclers Shooed 3 | . 2 . . 1 Parts Field Recycled . | . . . . . Retrieved Matter . | . . . . . Parts Self-Destructed 2 | . . . 2 . Prevented . | . . . . . Kills | -11 -10 -10 -10 -8 ------- Run | Yrd Mat Min Sub Rec Combat Hostiles Destroyed 14 | . 8 3 3 . Guns 6 | . 4 1 1 . Cannons 5 | . 1 2 2 . AOE 3 | . 3 . . . Classes Destroyed 5 | . 3 1 1 . Worker 1 | . 1 . . . Recycler 5 | . 2 . . 3 Swarmer 1 | . . 1 . . Grunt 10 | . 8 2 . . Subdweller 3 | . . . 3 . Best Kill Streak 2 | . 2 2 1 2 Combat Bots Only 2 | . 2 2 1 . Max Kills in Single Turn 2 | . 2 1 1 1 Gunslinging . | . . . . . Exploded 2 | . 2 . . . Melee . | . . . . . Uniques/NPCs Destroyed . | . . . . . Combat | -11 -10 -10 -10 -8 -------- Run | Yrd Mat Min Sub Rec Hostile Shots Fired 81 | . 32 29 16 4 Missed 26 | . 13 7 5 1 Damage Taken 1003 | . 238 491 229 45 Core 256 | . 113 107 20 16 Absorbed by Shields . | . . . . . Core Remaining (%) 100 | 100 . . . . Volleys Fired 98 | . 36 21 29 12 Largest 2 | . 2 2 2 1 Hottest 110 | . 90 100 110 80 Shots Fired 152 | . 66 32 42 12 Gun 95 | . 60 11 13 11 Cannon 39 | . 3 6 29 1 Launcher 7 | . 3 4 . . Special 11 | . . 11 . . Kinetic 57 | . 33 11 13 . Thermal 61 | . 3 17 29 12 Explosive 7 | . 3 4 . . Electromagnetic 27 | . 27 . . . Robot Hit Streak 9 | . 9 4 9 5 Robot Miss Streak 3 | . 3 2 2 2 Penetration Max . | . . . . . Secondary Targets 2 | . 2 . . . Max Gunslinging Chain 1 | . 1 . . . Shots Hit Robots 79 | . 34 14 17 14 Core Hits 41 | . 20 10 7 4 Critical Kills 1 | . . . 1 . Critical Parts Destroyed . | . . . . . Critical Strikes 1 | . . . 1 . Destroy 1 | . . . 1 . Melee Attacks 7 | . . . . 7 Impact . | . . . . . Slashing . | . . . . . Piercing . | . . . . . Sneak Attacks 5 | . . . . 5 Combat Hostiles 2 | . . . . 2 Follow-up Attacks . | . . . . . Damage Inflicted 1407 | . 638 231 392 146 Guns 631 | . 340 52 119 120 Cannons 422 | . 53 70 273 26 Explosions 255 | . 221 34 . . Melee . | . . . . . Ramming 75 | . 24 51 . . Kinetic 310 | . 139 52 119 . Thermal 700 | . 187 94 273 146 Explosive 121 | . 87 34 . . Electromagnetic 201 | . 201 . . . Impact . | . . . . . Slashing . | . . . . . Piercing . | . . . . . Highest Corruption 4 | . 1 4 4 4 Average Corruption 2 | . 1 1 4 4 Corruption Purged . | . . . . . Corruption Blocked . | . . . . . Effects 37 | . . 12 15 10 Message Errors 8 | . . 2 1 5 Matter Fused 10 | . . 5 3 2 Heat Flow Errors 4 | . . 1 3 . Energy Discharges 2 | . . . 1 1 Data Loss (minor) 5 | . . 1 4 . Data Loss (major) 2 | . . 1 1 . Misfires 3 | . . 1 1 1 Alerts 2 | . . 1 . 1 Weapon Failures 1 | . . . 1 . Overload Shots . | . . . . . Overflow Damage 12 | . . 12 . . Projectiles 12 | . . 12 . . Explosions . | . . . . . Melee . | . . . . . Knockbacks . | . . . . . Impact . | . . . . . Kinetic . | . . . . . Secondary . | . . . . . Self-Inflicted Damage 37 | . 12 25 . . Shots . | . . . . . Rammed 9 | . 3 6 . . Targets Rammed 9 | . 3 6 . . Kicked . | . . . . . Crushed . | . . . . . Highest Temperature 239 | . 108 239 176 56 Average Temperature 38 | . 34 51 28 23 Received Heat Transfer 321 | . 120 153 39 9 Siege Activations . | . . . . . Robots Corrupted . | . . . . . Combat Hostiles . | . . . . . Parts Fried . | . . . . . Impact Corruptions . | . . . . . Robots Melted . | . . . . . Combat Hostiles . | . . . . . Parts Melted . | . . . . . Heat Transferred 1125 | . 261 198 370 296 Parts Sabotaged . | . . . . . Parts Stolen . | . . . . . Parts Stripped . | . . . . . Power Chain Reactions 2 | . 2 . . . Alert | -11 -10 -10 -10 -8 ------- Run | Yrd Mat Min Sub Rec Peak Influence 270 | . 270 95 . 231 Initial 216 | . . 39 . 216 Average 99 | . 107 58 . 184 Maximum Alert Level 1 | . 1 . . 1 Low Security (%) 79 | 100 93 100 . 18 Level 1 20 | . 6 . . 81 Level 2 . | . . . . . Level 3 . | . . . . . Level 4 . | . . . . . Level 5 . | . . . . . High Security . | . . . . . Max Security . | . . . . . Squads Dispatched 2 | . 1 1 . . Investigation 1 | . 1 . . . Extermination . | . . . . . Reinforcement . | . . . . . Assault 1 | . . 1 . . Garrison . | . . . . . Intercept . | . . . . . Searches Triggered . | . . . . . Construction Impeded . | . . . . . Haulers Reinforced . | . . . . . Active Scanning Responses . | . . . . . Cargo Convoy Interrupts . | . . . . . Stealth | -11 -10 -10 -10 -8 --------- Run | Yrd Mat Min Sub Rec Distress Signals . | . . . . . Communications Jammed . | . . . . . Distress Signals . | . . . . . Times Spotted 66 | . 12 15 38 1 Peak Tracking Total 14 | . 3 14 8 1 Tactical Retreats 4 | . . 2 2 . Traps | -11 -10 -10 -10 -8 ------- Run | Yrd Mat Min Sub Rec Traps Triggered 1 | . . . 1 . Indirectly . | . . . . . Trap Hack Attempts . | . . . . . Triggered . | . . . . . Disarmed . | . . . . . Reprogrammed . | . . . . . Reused . | . . . . . Traps Extracted . | . . . . . Installed . | . . . . . Triggered . | . . . . . Machines | -11 -10 -10 -10 -8 ---------- Run | Yrd Mat Min Sub Rec Machines Disabled . | . . . . . Max in Single Turn . | . . . . . Machines Repaired . | . . . . . Machines Dismantled . | . . . . . Machines Sabotaged . | . . . . . Overloaded Fab Kills . | . . . . . Hacking | -11 -10 -10 -10 -8 --------- Run | Yrd Mat Min Sub Rec Machines Accessed 5 | . 3 . . 2 Terminals 3 | . 3 . . . Fabricators . | . . . . . Repair Stations . | . . . . . Recycling Units 2 | . . . . 2 Scanalyzers . | . . . . . Garrison Access . | . . . . . Total Hacks 13 | . 10 . . 3 Successful 8 | . 5 . . 3 Failed 5 | . 5 . . . Catastrophic 1 | . 1 . . . Database Lockouts . | . . . . . Manual 1 | . 1 . . . Terminals 10 | . 10 . . . Fabricators . | . . . . . Repair Stations . | . . . . . Recycling Units 3 | . . . . 3 Scanalyzers . | . . . . . Garrison Access . | . . . . . Terminal Hacks 5 | . 5 . . . Prototype ID Bank 1 | . 1 . . . Terminal Index 1 | . 1 . . . Scanalyzer Index 1 | . 1 . . . Alert Level 1 | . 1 . . . Zone Layout 1 | . 1 . . . Fabricator Hacks . | . . . . . Repair Station Hacks . | . . . . . Recycling Unit Hacks 3 | . . . . 3 Report Inventory 2 | . . . . 2 Retrieve Components 1 | . . . . 1 Scanalyzer . | . . . . . Garrison Access Hacks . | . . . . . Unauthorized Hacks . | . . . . . Terminals . | . . . . . Fabricators . | . . . . . Repair Stations . | . . . . . Recycling Units . | . . . . . Scanalyzers . | . . . . . Garrison Access . | . . . . . Data Cores Recovered . | . . . . . Used . | . . . . . Hacking Detections 2 | . 2 . . . Full Trace Events 2 | . 2 . . . Feedback Events 1 | . 1 . . . Corruption 1 | . 1 . . . Feedback Blocked . | . . . . . Robot Schematics Acquired . | . . . . . Robots Built . | . . . . . Authchips . | . . . . . Time . | . . . . . Total Robot Build Rating . | . . . . . Part Schematics Acquired . | . . . . . Parts Built . | . . . . . Authchips . | . . . . . Time . | . . . . . Total Part Build Rating . | . . . . . Parts Repaired . | . . . . . Time . | . . . . . Parts Recycled . | . . . . . Recycled Matter . | . . . . . Retrieved Matter . | . . . . . Retrieved Components 2 | . . . . 2 Parts Scanalyzed . | . . . . . Part Schematics Acquired . | . . . . . Parts Damaged . | . . . . . Bothacking | -11 -10 -10 -10 -8 ------------ Run | Yrd Mat Min Sub Rec Used RIF Installer . | . . . . . Robots Hacked 4 | . . . . 4 Non-combat 3 | . . . . 3 Combat 1 | . . . . 1 Robot Hacks Applied 4 | . . . . 4 parse_system 1 | . . . . 1 no_distress 3 | . . . . 3 Relay Couplers Released . | . . . . . Fabnet Peak Effective % . | . . . . . Robots Rewired . | . . . . . Allies Hacked . | . . . . . Hacks Repelled . | . . . . . Allies | -11 -10 -10 -10 -8 -------- Run | Yrd Mat Min Sub Rec Total Allies 1 | . . 1 . . Largest Group 1 | . . 1 . . Highest-Rated Group 31 | . . 31 . . Highest-Rated Ally 31 | . . 31 . . Total Orders . | . . . . . Ally Attacks 7 | . . 7 . . Total Damage 61 | . . 61 . . Kills 2 | . . 2 . . Allies Corrupted . | . . . . . Allies Melted . | . . . . . Intel | -11 -10 -10 -10 -8 ------- Run | Yrd Mat Min Sub Rec Robot Analysis Total . | . . . . . Derelict Logs Recovered 3 | . . 2 1 . Drone Launches . | . . . . . Drone Recoveries . | . . . . . Exploration | -11 -10 -10 -10 -8 ------------- Run | Yrd Mat Min Sub Rec Turns Passed 2707 | 63 534 979 640 491 Spaces Moved 2242 | 52 423 895 464 408 Core 115 | 5 . 107 3 . Treads . | . . . . . Legs . | . . . . . Wheels 2127 | 47 423 788 461 408 Hover . | . . . . . Flight . | . . . . . Fastest Speed 50 | 50 100 50 50 110 Average Speed 103 | 95 100 97 113 110 Slowest Speed 550 | 100 100 550 130 120 Overloaded Moves . | . . . . . Propulsion Burnouts . | . . . . . Robots Hopped . | . . . . . Cave-ins Triggered . | . . . . . Exploration Rate (%) 42 | 3 40 89 31 48 Regions Visited 4 Branch Regions 3 Pre-discovered Areas . | . . . . . Known Exits Taken 1 | . . . 1 . Unknown Exits Taken 3 | 1 1 1 . . Scrap Searched 4 | . . 3 1 . Spaces Dug 9 | . . 8 1 . Terrain Destroyed 68 | . 35 31 2 . Melee . | . . . . . Projectile 10 | . . 8 2 . AOE 58 | . 35 23 . . Terrain Rammed . | . . . . . Walls Destroyed . | . . . . . Machines Disabled . | . . . . . Actions | -11 -10 -10 -10 -8 --------- Run | Yrd Mat Min Sub Rec Total 2447 | 65 474 936 533 439 Wait 5 | . . . 5 . Move 2238 | 51 422 894 463 408 Hop . | . . . . . Pick Up 32 | 8 8 3 10 3 Fast Attach 4 | . . . 2 2 Attach 16 | 6 2 1 5 2 Detach . | . . . . . Swap 14 | . 2 6 6 . Drop 17 | . 1 3 8 5 Fire 98 | . 36 21 29 12 Melee 7 | . . . . 7 Ram 9 | . 3 6 . . Kick . | . . . . . Crush . | . . . . . Escape Stasis . | . . . . . Rewire 3 | . . 2 1 . Trap . | . . . . . Miscellaneous 4 | . . . 4 . Route ------- -11/Scrapyard -10/Materials -10/Mines (discovered 3 exits: [*Mat x2] / [*Sub]) -10/Subcaves -8/Recycling History --------- Turn | Location | Event 17 | -11/Scrapyard | Discovered new exit (range 16) 64 | -11/Scrapyard | Entered Materials 316 | -10/Materials | Build established: Mutant 581 | -10/Materials | Discovered new exit (range 10) 598 | -10/Materials | Entered Mines 601 | -10/Mines | Discovered new exit (range 11) 614 | -10/Mines | Core integrity fell below 50% 888 | -10/Mines | Assembled infested the area 893 | -10/Mines | Assisted by a Guerilla fighting off Assembled 959 | -10/Mines | Learned Materials interactive machine intel 972 | -10/Mines | Learned Materials emergency access door positions 996 | -10/Mines | Met a Derelict testing a Signal Generator 1010 | -10/Mines | Found Signal Generator 1245 | -10/Mines | Discovered new exit (range 7) 1382 | -10/Mines | Discovered new exit (range 8) 1522 | -10/Mines | Core integrity fell below 20% 1556 | -10/Mines | Lost 3 parts (1n2w) 1577 | -10/Mines | Entered Subcaves 1681 | -10/Subcaves | Identified exit to Recycling 1782 | -10/Subcaves | Ambushed by swarm of Subdwellers 1937 | -10/Subcaves | Build established: Subdweller-Mutant 2022 | -10/Subcaves | Shifting Twisted Machinery released Sub. Machine Gun 2067 | -10/Subcaves | Shifting Twisted Machinery released Mak. Hacking Suite 2217 | -10/Subcaves | Entered Recycling 2227 | -8/Recycling | Found Scrap Engine 2245 | -8/Recycling | Lost 3 allies 2537 | -8/Recycling | Build established: Mutant 2708 | -8/Recycling | Destroyed by Y-45 Defender with Heavy Assault Rifle Last Messages --------------- >>no_distress Distress signal routine blocked. Connecting with Recycling Unit... >>Recycling(Report) Matter reserves: 0 Inventory: Empty 5Q4F0ATQTVNHLC:%ZJ3OYMQW7DVNUWW/G Sneak attack on R-06 Scavenger. Jacked R-06 Scavenger... >>no_distress Distress signal routine blocked. Sneak attack on Y-45 Defender. Y-45 Defender system offline. Sneak attack on Y-45 Defender. Y-45 Defender system offline. Y-45 Defender springs to life. Jacked Y-45 Defender... >>parse_system Reading system data... Map ----- +----------------------------------------------------+ | ###### #?# """% # #?????????? | | ?????# #?# #### #######?????????? | | ?????# ####### #?# #???##???????????????? | | ######+#####?# ##?# """ #????????????????????? | | ### #??# """ ##???????????????????? | | + #??# """ #???????????????????? | | ! # #??# #???????##########??? | | / ! # #??# #???????# ##?? | | ! ! + #??## #### ######??# #?? | | ! #### #???# ???# ##"""#??# #??? | | #??# #???# ???# ##"Y"#### #??? | | ! #??# #???? ???# + #??? | | #??# #????????######## # #??? | | #??# #?????????????# ! # #??? | | #??#+#?????????????#!! + #??? | | #??????????????????#!! # #??? | | ! #??????????????????### ###+######??? | | ######+#####????????????????????# #?# #???????? | | ######??????????????????# ### ##????### | | +??????????????????# #???? | | ######??????????????????# #??? | | Y"### ""#?????????????????????#### #??? | | ""#?# Y"#????????????????????????# #?? | | ###?# ""#?????????????###????????# #?? | | ????# ###?######+######Y########## ## | | ????# #???# @ u # | | ????+ #???# + | | ????# #???# # | | ????# #???######+####################### # | | ????+ #????????????????????????????????# #? | | ????# #????????????????????????????????# #? | | ????# #????????????????????????????????# #?? | | ????# #????????????????????????????????# #?? | | ????# #????????????????????????????????# #??? | | ????# #????????????????????????????????# #???#+# | | ????? ?????????????????????????????????? ??????? | | ?????????????????????????????????????????? ??????? | | ?????????????????????????????????????????? ??????? | | ?????????????????????????????????????????? ??????? | | ?????????????????????????????????????????? ??????? | | ?????????????????????????????????????????? ??????? | | ?????????????????????????????????????????? ??????? | | ?????????????????????????????????????????????????? | | ?????????????????????????????????????????????????? | | ?????????????????????????????????????????????????? | | ?????????????????????????????????????????????????? | | ?????????????????????????????????????????????????? | | ?????????????????????????????????????????????????? | | ?????????????????????????????????????????????????? | | ?????????????????????????????????????????????????? | +----------------------------------------------------+ Best States ------------- Heat Dissipation 25 Energy Generation 19 Energy Capacity 315 Matter Stores 300 Matter Capacity 300 Sight Range 16 Terrain Scan Density 10 Armor Coverage 800 Evasion (%) 50 Item Schematics ----------------- None Robot Schematics ------------------ None Fabricated ------------ Nothing Alien Tech Used ----------------- None Achievements -------------- Slippery One Challenges ------------ None Game ------ Seed QuantumPointySpecial Manual? 0 Play Time 00:26:17 Cumulative 11.5 hours Start 2024.04.06 @ 23:09:41 End 2024.04.06 @ 23:34:07 Sessions 1 Manual Loads 0 Difficulty Rogue Special Mode None Game No. 27 Rogue 27 Adventurer 0 Explorer 0 Win Type - Total 0 Types 0/0/0/0/0/0/0/0/0 Lore% 15 Gallery% 22 Achievement% 17 Wizard Run 0 Options --------- Layout 1 ASCII 0 Keyboard 0 Movement Arrows Keybinds 0 Fullscreen 1 Font 24/Smallcaps Map View 50x35 Zoom Use 0% Tactical HUD 0 Map Filters NONE Filters NONE Steam 1 RUN: 021ea002-d203-4786-8b2d-15c4078cc14e